bitfinex/quotes_BTCUSD_20251207
["timestamp","ask_amount","ask_price","bid_price","bid_amount"]
[1765136562460,0.01095062,91319.0,91315.0,0.02220398]
[1765136562678,0.01095074,91318.0,91315.0,0.02220398]
[1765136562809,0.01095074,91318.0,91317.0,0.02220398]
[1765136563016,0.22995741,91322.0,91321.0,0.02220398]
[1765136563218,0.01095026,91322.0,91321.0,0.05715398]
[1765136563440,0.2299505,91324.0,91323.0,0.02220398]
[1765136563700,0.2299505,91324.0,91323.0,0.03777398]
[1765136563900,0.2299505,91324.0,91323.0,0.05715398]
[1765136565569,0.2299505,91324.0,91323.0,0.06015398]
[1765136565770,0.2299505,91324.0,91323.0,0.06215398]
[1765136575225,0.01095002,91324.0,91323.0,0.06215398]
[1765136576251,0.2299505,91324.0,91323.0,0.06215398]
[1765136577253,0.01095002,91324.0,91323.0,0.06215398]
[1765136578187,0.01095002,91324.0,91323.0,0.03995]
[1765136580402,0.21899597,91326.0,91323.0,0.03995]
[1765136580403,0.01094978,91326.0,91323.0,0.03995]
[1765136580617,0.01094978,91326.0,91325.0,0.0166]
[1765136580971,0.01094978,91326.0,91325.0,0.05818398]
[1765136581998,0.01094978,91326.0,91325.0,0.05918398]
[1765136583093,0.01094978,91326.0,91325.0,0.06118398]
[1765136583481,0.22994546,91326.0,91325.0,0.06118398]
[1765136584376,0.22994546,91326.0,91325.0,0.03898]
[1765136586730,0.22994546,91326.0,91325.0,0.03739881]
[1765136587556,0.22994546,91326.0,91325.0,0.003]
[1765136587969,0.22994546,91326.0,91325.0,0.0196]
[1765136588115,0.22994546,91326.0,91325.0,0.0374]
[1765136588322,0.22994546,91326.0,91325.0,0.05960398]
[1765136591746,0.01094954,91328.0,91326.0,0.02220398]
[1765136591946,0.01094954,91328.0,91327.0,0.04554398]
[1765136592685,0.01094954,91328.0,91327.0,0.06334398]
[1765136593847,0.01094954,91328.0,91327.0,0.06434398]
[1765136594285,0.01094954,91328.0,91327.0,0.06534398]
[1765136596622,0.01094834,91338.0,91337.0,0.02220398]
[1765136596760,0.01728,91346.0,91341.0,0.02220398]
[1765136596761,0.21895469,91344.0,91341.0,0.02220398]
[1765136597154,0.0109475,91345.0,91341.0,0.03743398]
[1765136597361,0.22989968,91345.0,91341.0,0.05523398]
[1765136597924,0.0109475,91345.0,91341.0,0.05523398]
[1765136598293,0.0046331,91342.0,91341.0,0.05523398]
[1765136598734,0.0026331,91342.0,91341.0,0.05523398]
[1765136598907,0.0026331,91342.0,91341.0,0.05823398]
[1765136599527,0.0016331,91342.0,91341.0,0.05823398]
[1765136599857,0.0016331,91342.0,91341.0,0.06023398]
[1765136609022,0.0016331,91342.0,91341.0,0.51915151]
[1765136610255,0.0016331,91342.0,91341.0,0.5816745]
[1765136610462,0.0016331,91342.0,91341.0,0.9046745]
[1765136610662,0.0016331,91342.0,91341.0,0.94399987]
[1765136610857,0.0016331,91342.0,91341.0,0.9046745]
[1765136611264,0.0016331,91342.0,91341.0,0.8996745]
[1765136611721,0.0016331,91342.0,91341.0,0.9016745]
[1765136612429,0.0016331,91342.0,91341.0,0.83915151]
[1765136612630,0.0016331,91342.0,91341.0,0.84115151]
[1765136613310,0.0016331,91342.0,91341.0,0.88042453]
[1765136615042,0.0016331,91342.0,91341.0,0.94294752]
[1765136615949,0.0016331,91342.0,91341.0,0.9036745]
[1765136616151,0.23116873,91379.0,91341.0,1.05074065]
[1765136616450,0.00011849,91379.0,91378.0,0.02413]
[1765136616650,0.00011849,91379.0,91378.0,0.24300106]
[1765136616872,0.00011849,91379.0,91378.0,0.26080106]
[1765136617268,0.00511849,91379.0,91378.0,0.02413]
[1765136617488,0.00011849,91379.0,91378.0,0.02413]
[1765136617694,0.00011849,91379.0,91378.0,0.04193]
[1765136617923,0.00111849,91379.0,91378.0,0.04193]
[1765136618211,0.00111849,91379.0,91378.0,0.06513398]
[1765136619026,0.00111849,91379.0,91378.0,0.28400504]
[1765136619223,0.00111849,91379.0,91378.0,0.06513398]
[1765136620429,0.00111849,91379.0,91378.0,0.28400504]
[1765136621237,0.00111849,91379.0,91378.0,0.06513398]
[1765136622115,0.00220277,91379.0,91378.0,0.06513398]
[1765136623059,0.00220277,91379.0,91378.0,0.0099]
[1765136623851,0.01758246,91379.0,91378.0,0.0099]
[1765136624255,0.01758246,91379.0,91378.0,0.001]
[1765136630013,0.04655533,91379.0,91378.0,0.001]
[1765136630419,0.03079533,91379.0,91378.0,0.001]
[1765136632166,0.07127533,91379.0,91378.0,0.001]
[1765136633103,0.01094463,91369.0,91365.0,0.01984511]
[1765136633338,0.01094427,91372.0,91369.0,0.02220398]
[1765136633555,0.21888783,91371.0,91369.0,0.02220398]
[1765136633919,0.00082062,91370.0,91369.0,0.02220398]
[1765136635593,0.00082062,91370.0,91369.0,0.03795398]
[1765136636207,0.00282062,91370.0,91369.0,0.03795398]
[1765136636608,0.00282062,91370.0,91369.0,0.03895398]
[1765136638844,0.00282062,91370.0,91369.0,0.01675]
[1765136639036,0.00282062,91370.0,91369.0,0.05675398]
[1765136640275,0.00282062,91370.0,91369.0,0.001]
[1765136641297,0.00282062,91370.0,91369.0,0.2750766]
[1765136641698,0.00282062,91370.0,91369.0,0.28602015]
[1765136642225,0.00282062,91370.0,91369.0,0.3252896]
[1765136644274,0.00282062,91370.0,91369.0,0.28602015]
[1765136647035,0.00282062,91370.0,91369.0,0.30795015]
[1765136647257,0.00282062,91370.0,91369.0,0.28602015]
[1765136648257,0.00282062,91370.0,91369.0,0.34502529]
[1765136648860,0.00282062,91370.0,91369.0,0.28602015]
[1765136652043,0.00282062,91370.0,91369.0,0.96596915]
[1765136652259,0.00282062,91370.0,91369.0,1.02849214]
[1765136652604,0.00282062,91370.0,91369.0,1.35149214]
[1765136652811,0.00011849,91379.0,91378.0,2.60439405]
[1765136653017,0.00011849,91379.0,91378.0,2.65891803]
[1765136653217,0.00011849,91379.0,91378.0,2.69864803]
[1765136653400,0.00011849,91379.0,91378.0,2.70302812]
[1765136654328,0.0002,91390.0,91389.0,0.62657168]
[1765136654552,0.00059489,91390.0,91389.0,0.65889168]
[1765136654757,0.00059489,91390.0,91389.0,1.36720968]
[1765136654981,0.00059489,91390.0,91389.0,1.37158951]
[1765136655637,0.00059489,91390.0,91389.0,1.37558951]
[1765136656040,0.00059489,91390.0,91389.0,1.37758951]
[1765136656246,0.00059489,91390.0,91389.0,1.43649752]
[1765136656665,0.00059489,91390.0,91389.0,1.37758951]
[1765136656983,0.00059489,91390.0,91389.0,1.39951951]
[1765136657179,0.00059489,91390.0,91389.0,1.37758951]
[1765136658317,0.0002,91400.0,91398.0,2.30355013]
[1765136658521,0.0002,91400.0,91398.0,2.64159013]
[1765136658742,0.0002,91400.0,91398.0,2.68132013]
[1765136658937,0.00094953,91399.0,91398.0,2.68132013]
[1765136659514,0.00094953,91399.0,91398.0,2.68732013]
[1765136660157,0.00094953,91399.0,91398.0,2.68632013]
[1765136660372,0.00094953,91399.0,91398.0,2.72317164]
[1765136660706,0.00094953,91399.0,91398.0,2.71817164]
[1765136661002,0.00102298,91399.0,91398.0,2.73217164]
[1765136661242,0.00102298,91399.0,91398.0,2.67339013]
[1765136661460,0.00102298,91399.0,91398.0,2.73217164]
[1765136661832,0.00102298,91399.0,91398.0,2.67339013]
[1765136662866,0.00102298,91399.0,91398.0,2.67776913]
[1765136663467,2.98e-06,91400.0,91399.0,2.44946697]
[1765136663694,2.98e-06,91400.0,91399.0,2.46674697]
[1765136665027,2.98e-06,91400.0,91399.0,2.47374697]
[1765136665205,2.98e-06,91400.0,91399.0,2.55291832]
[1765136665609,2.98e-06,91400.0,91399.0,2.55691832]
[1765136666149,2.98e-06,91400.0,91399.0,2.49824697]
[1765136667193,2.98e-06,91400.0,91399.0,2.64531312]
[1765136670652,0.0205,91420.0,91399.0,2.64531312]
[1765136670653,0.0205,91420.0,91419.0,0.24097688]
[1765136670860,0.0205,91420.0,91419.0,2.80588602]
[1765136671060,0.0205,91420.0,91419.0,2.67661987]
[1765136671259,0.0205,91420.0,91419.0,2.69711987]
[1765136672294,0.0205,91420.0,91419.0,2.69911987]
[1765136672981,0.0205,91420.0,91419.0,2.70111987]
[1765136673627,0.0205,91420.0,91419.0,2.68383987]
[1765136673827,0.0205,91420.0,91419.0,2.70111987]
[1765136674703,0.0205,91420.0,91419.0,2.68383987]
[1765136674862,0.0205,91420.0,91419.0,0.95741687]
[1765136675057,0.0205,91420.0,91419.0,0.92561887]
[1765136676269,0.02088066,91420.0,91419.0,0.92561887]
[1765136677417,0.02088066,91420.0,91419.0,0.90833887]
[1765136677619,0.02088066,91420.0,91419.0,0.92561887]
[1765136681865,0.02088066,91420.0,91419.0,0.86309588]
[1765136682350,0.02088066,91420.0,91419.0,0.90220201]
[1765136683041,0.02088066,91420.0,91419.0,0.09682398]
[1765136683219,0.02088066,91420.0,91419.0,0.0245]
[1765136683584,0.02088066,91420.0,91419.0,0.0225]
[1765136683773,0.02088066,91420.0,91419.0,0.0205]
[1765136683975,0.02088066,91420.0,91419.0,0.04270398]
[1765136684228,0.02788066,91420.0,91419.0,0.04270398]
[1765136684767,0.02888066,91420.0,91419.0,0.04270398]
[1765136685358,0.02188066,91420.0,91419.0,0.04270398]
[1765136685691,0.03288066,91420.0,91419.0,0.04270398]
[1765136689321,0.01093876,91418.0,91414.0,0.01724]
[1765136689502,0.01093888,91417.0,91415.0,0.03284462]
[1765136689699,0.22039086,91417.0,91415.0,0.03284462]
[1765136691299,0.00161287,91417.0,91416.0,0.03436]
[1765136691488,0.00161287,91417.0,91416.0,0.20186198]
[1765136691679,0.22939055,91417.0,91416.0,0.01656]
[1765136691983,0.01061287,91417.0,91416.0,0.01656]
[1765136692447,0.00161287,91417.0,91416.0,0.01656]
[1765136692841,0.01161287,91417.0,91416.0,0.01656]
[1765136693893,0.01261287,91417.0,91416.0,0.01656]
[1765136694497,0.23139055,91417.0,91415.0,0.03284462]
[1765136695180,0.21878247,91415.0,91414.0,0.01724]
[1765136695353,0.24132943,91417.0,91414.0,0.01724]
[1765136695550,0.21878247,91415.0,91414.0,0.05008458]
[1765136695751,0.21878247,91415.0,91414.0,0.01724]
[1765136695967,0.23119247,91415.0,91414.0,0.01724]
[1765136696597,0.23119247,91415.0,91406.0,0.0198402]
[1765136696598,0.01093984,91409.0,91406.0,0.07618633]
[1765136696799,0.01093984,91409.0,91406.0,0.05894633]
[1765136697018,0.01093984,91409.0,91408.0,0.03284501]
[1765136697237,0.21879607,91410.0,91408.0,0.03284501]
[1765136697427,0.0109396,91411.0,91408.0,0.03284501]
[1765136697849,0.21879444,91410.0,91408.0,0.03284501]
[1765136698024,0.0109396,91411.0,91408.0,0.03284501]
[1765136698221,0.21879444,91410.0,91408.0,0.03284501]
[1765136698837,0.21879444,91410.0,91408.0,0.03384501]
[1765136699202,0.05303,91409.0,91408.0,0.03284501]
[1765136699404,0.01093996,91408.0,91405.0,0.01724]
[1765136699610,0.01094032,91405.0,91402.0,0.02220398]
[1765136699814,0.01094032,91405.0,91403.0,0.03284724]
[1765136700016,0.22974174,91407.0,91403.0,0.04378779]
[1765136700226,0.21880679,91405.0,91403.0,0.03284724]
[1765136700447,0.21878692,91414.0,91406.0,0.025]
[1765136700625,0.01093912,91415.0,91407.0,0.23490162]
[1765136700805,0.01093912,91415.0,91411.0,0.0161]
[1765136701004,0.22039066,91417.0,91411.0,0.0161]
[1765136701228,0.00161287,91417.0,91416.0,0.0161]
[1765136702026,0.00161287,91417.0,91416.0,0.25268008]
[1765136702027,0.00190569,91417.0,91416.0,0.25268008]
[1765136702217,0.00190569,91417.0,91416.0,0.27488406]
[1765136702411,0.01190569,91417.0,91416.0,0.03830398]
[1765136702674,0.01290569,91417.0,91416.0,0.03830398]
[1765136703096,0.22973164,91411.0,91408.0,0.03910613]
[1765136703369,0.21880162,91407.0,91405.0,0.03910613]
[1765136703580,0.21880001,91408.0,91404.0,0.03314442]
[1765136704601,0.22973164,91411.0,91407.0,0.02704008]
[1765136704894,0.22973164,91411.0,91410.0,0.03830398]
[1765136705105,0.0109396,91411.0,91410.0,0.03830398]
[1765136705433,0.01093948,91412.0,91411.0,0.02220398]
[1765136705632,0.01093948,91412.0,91411.0,0.0339]
[1765136705807,0.010939,91416.0,91413.0,0.02220398]
[1765136706185,0.010939,91416.0,91412.0,0.01093948]
[1765136706390,0.00161287,91417.0,91416.0,0.02220398]
[1765136706605,0.00161287,91417.0,91416.0,0.0161]
[1765136706781,0.00161287,91417.0,91416.0,0.05610398]
[1765136707392,0.0205,91420.0,91417.0,0.22971656]
[1765136707587,0.0205,91420.0,91419.0,0.03830398]
[1765136707945,0.0205,91420.0,91419.0,0.05610398]
[1765136708350,0.0205,91420.0,91419.0,0.27487688]
[1765136708770,0.0285,91420.0,91419.0,0.65480088]
[1765136709298,0.02888066,91420.0,91419.0,0.65480088]
[1765136710581,0.02888066,91420.0,91419.0,0.71346007]
[1765136710778,0.02888066,91420.0,91419.0,0.97780088]
[1765136710997,0.02888066,91420.0,91419.0,1.04032387]
[1765136711215,0.02088066,91420.0,91419.0,1.04032387]
[1765136711498,0.02488066,91420.0,91419.0,1.04032387]
[1765136711705,0.02088066,91420.0,91419.0,1.04032387]
[1765136712121,0.02488066,91420.0,91419.0,1.04132387]
[1765136712668,0.02488066,91420.0,91419.0,1.03742387]
[1765136713316,0.02488066,91420.0,91419.0,1.26220302]
[1765136713473,0.02488066,91420.0,91419.0,1.28908368]
[1765136713677,0.02488066,91420.0,91419.0,1.21037068]
[1765136714122,0.02488066,91420.0,91419.0,1.20837068]
[1765136714329,0.02088066,91420.0,91419.0,1.21237068]
[1765136714741,0.02088066,91420.0,91419.0,1.21437068]
[1765136717348,0.02088066,91420.0,91419.0,1.29282597]
[1765136717544,0.02088066,91420.0,91419.0,1.21437068]
[1765136718353,0.02088066,91420.0,91419.0,1.29280707]
[1765136718788,0.0004,91430.0,91429.0,0.21874897]
[1765136718991,0.00051838,91430.0,91429.0,2.65761594]
[1765136719191,0.00051838,91430.0,91429.0,2.67151594]
[1765136719337,0.00051838,91430.0,91429.0,2.67589365]
[1765136720001,0.00081114,91430.0,91429.0,2.67789365]
[1765136720201,0.00281114,91430.0,91429.0,2.67789365]
[1765136723048,0.00281114,91430.0,91429.0,1.29733967]
[1765136723366,0.00281114,91430.0,91429.0,0.48946205]
[1765136723574,0.00281114,91430.0,91429.0,0.81246205]
[1765136724215,0.00281114,91430.0,91429.0,0.77328395]
[1765136724419,0.00281114,91430.0,91429.0,0.81246205]
[1765136726046,0.00281114,91430.0,91429.0,0.77328395]
[1765136726456,0.00281114,91430.0,91429.0,0.81246153]
[1765136727224,0.00281114,91430.0,91429.0,0.89457472]
[1765136727434,0.00281114,91430.0,91429.0,0.98287309]
[1765136729302,0.00281114,91430.0,91429.0,1.06130911]
[1765136729477,0.00281114,91430.0,91429.0,0.98287309]
[1765136733232,0.00281114,91430.0,91429.0,1.0416525]
[1765136733544,0.00281114,91430.0,91429.0,0.96563309]
[1765136733731,0.00281114,91430.0,91429.0,0.98287309]
[1765136733928,0.00281114,91430.0,91429.0,0.9203501]
[1765136734274,0.00281114,91430.0,91429.0,0.68770113]
[1765136734583,0.00281114,91430.0,91429.0,0.36417395]
[1765136734731,0.00281114,91430.0,91429.0,0.37807395]
[1765136735118,0.00281114,91430.0,91429.0,0.36417395]
[1765136735319,0.00281114,91430.0,91429.0,0.04121494]
[1765136735519,0.01431114,91430.0,91429.0,0.002]
[1765136735970,0.00081114,91430.0,91429.0,0.22074897]
[1765136736213,0.00081114,91430.0,91429.0,0.21874897]
[1765136736361,0.00681114,91430.0,91429.0,0.21874897]
[1765136736746,0.01093756,91428.0,91425.0,0.03921494]
[1765136737125,0.22969646,91425.0,91421.0,0.05015334]
[1765136737244,0.01093792,91425.0,91421.0,0.22970645]
[1765136737478,0.0109378,91426.0,91423.0,0.01093816]
[1765136737683,0.01093792,91425.0,91421.0,0.07235732]
[1765136737899,0.01093792,91425.0,91422.0,0.126712]
[1765136738102,0.0109378,91426.0,91422.0,0.12640228]
[1765136738343,0.0109378,91426.0,91423.0,0.118096]
[1765136739034,0.01255067,91426.0,91423.0,0.118096]
[1765136739384,0.01955067,91426.0,91423.0,0.118096]
[1765136739605,0.01355067,91426.0,91423.0,0.118096]
[1765136740103,0.22969646,91425.0,91422.0,0.1297]
[1765136740302,0.21876811,91421.0,91420.0,0.03921494]
[1765136740466,0.22971154,91419.0,91416.0,0.03921494]
[1765136740676,0.24621198,91419.0,91416.0,0.03921494]
[1765136740902,0.01093888,91417.0,91414.0,0.03921494]
[1765136741268,0.01093876,91418.0,91415.0,0.115291]
[1765136741804,0.01093876,91418.0,91415.0,0.102917]
[1765136741963,0.01093876,91418.0,91414.0,0.01093924]
[1765136742159,0.01093876,91418.0,91415.0,0.102354]
[1765136742359,0.22971656,91417.0,91412.0,0.05015442]
[1765136742572,0.01193876,91418.0,91414.0,0.01093924]
[1765136742790,0.010939,91416.0,91413.0,0.105943]
[1765136743010,0.01093948,91412.0,91409.0,0.03921494]
[1765136743202,0.0109396,91411.0,91408.0,0.02817996]
[1765136743384,0.0109396,91411.0,91408.0,0.01724]
[1765136743692,0.0109396,91411.0,91406.0,0.0089]
[1765136743693,0.21880162,91407.0,91406.0,0.0089]
[1765136744041,0.22974924,91404.0,91400.0,0.01094091]
[1765136744243,0.22974924,91404.0,91398.0,0.03921494]
[1765136744244,0.01094079,91401.0,91398.0,0.03921494]
[1765136744423,0.01094115,91398.0,91395.0,0.005]
[1765136744594,0.22976507,91398.0,91395.0,0.005]
[1765136744784,0.21883035,91395.0,91394.0,0.01724]
[1765136744998,0.21883035,91395.0,91391.0,0.01094199]
[1765136744999,0.22977186,91395.0,91391.0,0.01094199]
[1765136745193,0.22977186,91395.0,91390.0,0.01094211]
[1765136745194,0.01094163,91394.0,91390.0,0.01094211]
[1765136746219,0.01094163,91394.0,91391.0,0.01194199]
[1765136746400,0.01094163,91394.0,91391.0,0.01094199]
[1765136746600,0.01094163,91394.0,91392.0,0.151324]
[1765136746808,0.01094163,91394.0,91392.0,0.10859]
[1765136747212,0.01094175,91393.0,91390.0,0.01194211]
[1765136747515,0.22977492,91394.0,91389.0,0.03314621]
[1765136747732,0.22977035,91396.0,91391.0,0.01094199]
[1765136747935,0.01094091,91400.0,91397.0,0.01094127]
[1765136748135,0.01094091,91400.0,91399.0,0.02220398]
[1765136748339,0.2297457,91406.0,91401.0,0.03314477]
[1765136748656,0.01094032,91405.0,91402.0,0.01094067]
[1765136748861,0.22974998,91404.0,91401.0,0.02220398]
[1765136749420,0.21881359,91402.0,91401.0,0.02220398]
[1765136749636,0.01094044,91404.0,91401.0,0.03314477]
[1765136749959,0.01094032,91405.0,91402.0,0.01094067]
[1765136750503,0.01094032,91405.0,91399.0,0.005]
[1765136750504,0.01094044,91404.0,91399.0,0.005]
[1765136750901,0.01494044,91404.0,91399.0,0.005]
[1765136751099,0.01194044,91404.0,91399.0,0.005]
[1765136751352,0.01094044,91404.0,91399.0,0.005]
[1765136751511,0.01094067,91402.0,91399.0,0.01594103]
[1765136751710,0.01094055,91403.0,91400.0,0.01094091]
[1765136751929,0.01094055,91403.0,91399.0,0.01594103]
[1765136752131,0.01094067,91402.0,91399.0,0.01594103]
[1765136752333,0.21881598,91401.0,91399.0,0.005]
[1765136752764,0.22976238,91399.0,91395.0,0.01094151]
[1765136753028,0.01094127,91397.0,91395.0,0.17143]
[1765136753380,0.01094103,91399.0,91396.0,0.01094139]
[1765136753583,0.01094079,91401.0,91398.0,0.03610398]
[1765136754261,0.01394079,91401.0,91398.0,0.03610398]
[1765136754466,0.01094079,91401.0,91398.0,0.03610398]
[1765136754803,0.01294079,91401.0,91398.0,0.02220398]
[1765136755355,0.002,91401.0,91398.0,0.25196668]
[1765136756528,0.002,91401.0,91400.0,0.03610398]
[1765136757664,0.01094079,91401.0,91398.0,0.01094115]
[1765136757817,0.01494079,91401.0,91399.0,0.02220398]
[1765136758639,0.01194079,91401.0,91399.0,0.02220398]
[1765136758875,0.01094079,91401.0,91399.0,0.02220398]
[1765136759046,0.01394079,91401.0,91399.0,0.02220398]
[1765136760475,0.23275891,91401.0,91399.0,0.02220398]
[1765136760837,0.003,91401.0,91399.0,0.02220398]
[1765136761155,0.003,91401.0,91400.0,0.0278]
[1765136761369,0.003,91401.0,91400.0,0.41101198]
[1765136762008,0.003,91401.0,91400.0,0.73401198]
[1765136762488,0.003,91401.0,91400.0,0.77322692]
[1765136762747,0.003,91401.0,91400.0,0.73401198]
[1765136763174,0.003,91401.0,91400.0,0.73501198]
[1765136763803,0.01699256,91426.0,91423.0,0.03314214]
[1765136764019,0.00161287,91426.0,91423.0,0.03314214]
[1765136764695,0.01255067,91426.0,91423.0,0.02220398]
[1765136764946,0.00161287,91426.0,91423.0,0.03314214]
[1765136765186,0.00961287,91426.0,91423.0,0.03314214]
[1765136765381,0.02055067,91426.0,91423.0,0.03314214]
[1765136765496,0.02255067,91426.0,91423.0,0.02220398]
[1765136766101,0.01161287,91426.0,91423.0,0.03314214]
[1765136766314,0.01161287,91426.0,91425.0,0.0139]
[1765136766520,0.01161287,91426.0,91425.0,0.03610398]
[1765136766733,0.01161287,91426.0,91423.0,0.01093816]
[1765136766927,0.00161287,91426.0,91425.0,0.02220398]
[1765136767377,0.00361287,91426.0,91425.0,0.02220398]
[1765136767626,0.00161287,91426.0,91425.0,0.02220398]
[1765136767797,0.00361287,91426.0,91425.0,0.02220398]
[1765136768209,0.00161287,91426.0,91425.0,0.02220398]
[1765136768524,0.00461287,91426.0,91425.0,0.02220398]
[1765136769086,0.00561287,91426.0,91425.0,0.02220398]
[1765136769720,0.00561287,91426.0,91424.0,0.21875978]
[1765136770866,0.00261287,91426.0,91424.0,0.21875978]
[1765136771069,0.00561287,91426.0,91424.0,0.21875978]
[1765136771289,0.00461287,91426.0,91424.0,0.21875978]
[1765136771496,0.00461287,91426.0,91424.0,0.21876093]
[1765136771710,0.00461287,91426.0,91422.0,0.01093828]
[1765136771890,0.01245,91423.0,91419.0,0.01093864]
[1765136772110,0.01245,91423.0,91417.0,0.01788888]
[1765136772311,0.22971908,91416.0,91411.0,0.07233375]
[1765136772517,0.010939,91416.0,91412.0,0.22972913]
[1765136773394,0.010939,91416.0,91407.0,0.40505591]
[1765136773395,0.22973653,91410.0,91407.0,0.14706615]
[1765136773818,0.21879918,91409.0,91407.0,0.14706615]
[1765136774033,0.22973653,91410.0,91407.0,0.14706615]
[1765136774246,0.01093984,91409.0,91406.0,0.02220398]
[1765136774626,0.22973886,91409.0,91407.0,0.001]
[1765136774807,0.01093984,91409.0,91407.0,0.001]
[1765136775237,0.01093984,91409.0,91407.0,0.002]
[1765136775665,0.01093984,91409.0,91407.0,0.001]
[1765136775879,0.01093948,91412.0,91408.0,0.01093996]
[1765136776282,0.01093948,91412.0,91408.0,0.22973874]
[1765136776716,0.01093948,91412.0,91408.0,0.01093996]
[1765136776895,0.01093948,91412.0,91407.0,0.01194008]
[1765136777135,0.01093972,91410.0,91407.0,0.01294008]
[1765136777349,0.01093972,91410.0,91407.0,0.209513]
[1765136777558,0.01093972,91410.0,91408.0,0.001]
[1765136777921,0.01093972,91410.0,91406.0,0.25194792]
[1765136778135,0.01093972,91410.0,91407.0,0.209513]
[1765136778330,0.01093972,91410.0,91407.0,0.210513]
[1765136778545,0.01093972,91410.0,91407.0,0.01194008]
[1765136778888,0.01093972,91410.0,91407.0,0.01094008]
[1765136779084,0.01093984,91409.0,91406.0,0.02220398]
[1765136779384,0.01093984,91409.0,91407.0,0.208813]
[1765136779599,0.01093984,91409.0,91407.0,0.001]
[1765136779798,0.01093984,91409.0,91407.0,0.207813]
[1765136780019,0.01093984,91409.0,91407.0,0.208813]
[1765136780201,0.01093984,91409.0,91407.0,0.001]
[1765136780341,0.01093984,91409.0,91407.0,0.207813]
[1765136780542,0.01093984,91409.0,91407.0,0.208813]
[1765136780764,0.01093984,91409.0,91407.0,0.002]
[1765136780964,0.03907,91408.0,91407.0,0.002]
[1765136781255,0.03907,91408.0,91407.0,0.001]
[1765136781436,0.01578,91408.0,91407.0,0.002]
[1765136781836,0.22973882,91409.0,91407.0,0.001]
[1765136782073,0.03907,91408.0,91407.0,0.001]
[1765136782273,0.03907,91408.0,91407.0,0.002]
[1765136782473,0.03907,91408.0,91407.0,0.001]
[1765136782928,0.03907,91408.0,91407.0,0.002]
[1765136783324,0.03907,91408.0,91407.0,0.001]
[1765136783503,0.03907,91408.0,91399.0,0.01728]
[1765136783849,0.02339067,91402.0,91399.0,0.01728]
[1765136784068,0.24220455,91402.0,91399.0,0.01728]
[1765136784272,0.01094079,91401.0,91397.0,0.01094127]
[1765136784903,0.01094115,91398.0,91395.0,0.03919017]
[1765136785104,0.03917115,91398.0,91394.0,0.0501318]
[1765136785306,0.01094103,91399.0,91394.0,0.0501318]
[1765136785307,0.2297546,91402.0,91397.0,0.01094127]
[1765136785482,0.01094067,91402.0,91401.0,0.02915398]
[1765136785692,0.01094044,91404.0,91402.0,0.02220398]
[1765136785893,0.003,91402.0,91401.0,0.00695]
[1765136786030,0.0109402,91406.0,91401.0,0.01789079]
[1765136786236,0.01094044,91404.0,91401.0,0.01789079]
[1765136786463,0.002,91402.0,91401.0,0.01789079]
[1765136786674,0.01093984,91409.0,91401.0,0.01789079]
[1765136786675,0.01094044,91404.0,91401.0,0.01789079]
[1765136786871,0.22974401,91407.0,91402.0,0.22975426]
[1765136787075,0.01094008,91407.0,91403.0,0.01094055]
[1765136787276,0.01094008,91407.0,91403.0,0.22974948]
[1765136787481,0.01093996,91408.0,91404.0,0.01094044]
[1765136788143,0.01093984,91409.0,91406.0,0.0109402]
[1765136788359,0.03422804,91424.0,91411.0,0.02220398]
[1765136788542,0.01093912,91415.0,91412.0,0.01093948]
[1765136789141,0.22971921,91416.0,91412.0,0.01093948]
[1765136789320,0.21878486,91414.0,91411.0,0.03314358]
[1765136789523,0.01093936,91413.0,91412.0,0.02220398]
[1765136790651,0.01493936,91413.0,91412.0,0.02220398]
[1765136790855,0.01593936,91413.0,91412.0,0.02220398]
[1765136791283,0.005,91413.0,91412.0,0.02220398]
[1765136791449,0.005,91413.0,91411.0,0.21879204]
[1765136792020,0.005,91413.0,91412.0,0.05000398]
[1765136792237,0.005,91413.0,91412.0,1.25286598]
[1765136792448,0.005,91413.0,91412.0,1.27014598]
[1765136792649,0.004,91413.0,91412.0,1.27014598]
[1765136792945,0.00161287,91426.0,91425.0,0.02220398]
[1765136793170,0.00023421,91428.0,91427.0,0.02220398]
[1765136793370,0.00035259,91428.0,91427.0,0.03610398]
[1765136793615,0.00035259,91428.0,91427.0,0.05000398]
[1765136794133,0.00035259,91428.0,91427.0,0.02220398]
[1765136794356,0.22970384,91423.0,91419.0,0.03929009]
[1765136794595,0.2187729,91419.0,91416.0,0.02220398]
[1765136794842,0.02631845,91418.0,91413.0,0.03929009]
[1765136795049,0.02631845,91418.0,91414.0,0.03929009]
[1765136795277,0.21878247,91415.0,91413.0,0.03929009]
[1765136795479,0.23123726,91413.0,91411.0,0.06149407]
[1765136795655,0.23123726,91413.0,91411.0,0.02220398]
[1765136796242,0.21879922,91408.0,91407.0,0.03929009]
[1765136796847,0.01093972,91410.0,91407.0,0.03929009]
[1765136797304,0.21879683,91409.0,91407.0,0.03929009]
[1765136797948,0.001,91408.0,91407.0,0.18505209]
[1765136798142,0.001,91408.0,91407.0,0.145762]
[1765136798557,0.004,91408.0,91407.0,0.145762]
[1765136798918,0.003,91408.0,91407.0,0.145762]
[1765136800140,0.22179922,91408.0,91406.0,0.03929009]
[1765136800344,0.22279922,91408.0,91407.0,0.17288009]
[1765136800868,0.22179922,91408.0,91407.0,0.03929009]
[1765136801489,0.22179922,91408.0,91407.0,0.17415209]
[1765136801946,0.22179922,91408.0,91407.0,0.03929009]
[1765136802357,0.23273918,91408.0,91405.0,0.02220398]
[1765136802561,0.23273918,91408.0,91406.0,0.142687]
[1765136802781,0.23273918,91408.0,91405.0,0.02220398]
[1765136803196,0.23373918,91408.0,91405.0,0.02220398]
[1765136803746,0.01393996,91408.0,91405.0,0.02220398]
[1765136804360,0.01093948,91412.0,91407.0,0.02484008]
[1765136804563,0.0109396,91411.0,91408.0,0.05025889]
[1765136804703,0.01537969,91411.0,91410.0,0.02220398]
[1765136805062,0.01093924,91414.0,91413.0,0.02220398]
[1765136805368,0.22971967,91416.0,91414.0,0.02220398]
[1765136805719,0.01093912,91415.0,91414.0,0.02220398]
[1765136806624,0.012939,91416.0,91414.0,0.02220398]
[1765136806840,0.010939,91416.0,91414.0,0.02220398]
[1765136807248,0.002,91415.0,91414.0,0.02220398]
[1765136808567,0.01093888,91417.0,91414.0,0.02220398]
[1765136808727,0.002,91416.0,91414.0,0.02220398]
[1765136808926,0.006,91415.0,91414.0,0.02220398]
[1765136809426,0.006,91415.0,91414.0,0.59174998]
[1765136809635,0.007,91415.0,91414.0,0.59174998]
[1765136810341,0.00035259,91428.0,91427.0,0.02220398]
[1765136811661,0.00735259,91428.0,91427.0,0.02220398]
[1765136812294,0.00935259,91428.0,91427.0,0.02220398]
[1765136813033,0.00935259,91428.0,91427.0,0.82015773]
[1765136813261,0.00935259,91428.0,91427.0,0.87895295]
[1765136813594,0.00935259,91428.0,91427.0,0.82015773]
[1765136814101,0.00235259,91428.0,91427.0,0.79795375]